Cogmind - Beta 16 @@@ ROGUE MODE // 2026.01.18 @ 18:06:07 Player: YoKa Result: Destroyed by G-34 Mercenary with Small Laser Performance ------------- Evolutions (1) 500 Regions Visited (3) 600 Robots Destroyed (28) 140 Value Destroyed (651) 651 Prototype IDs (1) 20 Alien Tech Used (0) 0 Bonus (0) 0 TOTAL SCORE: 1911 Bonus ------- None Cogmind --------- Core Integrity 0/400 Matter 300/300 Energy 100/100 System Corruption 11% Temperature Warm (156) Movement Core (50) Location -9/Materials Parts ------- > --- POWER (1) -------- (None) > --- PROPULSION (3) --- (None) > --- UTILITY (3) ------ (None) > --- WEAPON (2) ------- (None) > --- INVENTORY (5) ---- High-capacity Matter Pod (200) Compact Matter Pod (150) Peak State ------------ > --- POWER ------------ Light Ion Engine > --- PROPULSION ------- Flight Unit Flight Unit > --- UTILITY ---------- Medium Matter Pod High-capacity Matter Pod Experimental Sensor Array > --- WEAPON ----------- Light Assault Rifle Light Assault Rifle > --- INVENTORY -------- Compact Matter Pod [Rating: 16] Favorites ----------- Power Light Ion Engine Engine Light Ion Engine Propulsion Aluminum Leg Treads Light Treads Leg Aluminum Leg Wheel Wheel Flight Unit Flight Unit Utility High-capacity Matter Pod Device Structural Scanner Storage High-capacity Matter Pod Weapon Light Assault Rifle Energy Gun EM Pulse Gun Ballistic Gun Light Assault Rifle Launcher Grenade Launcher Build | -11 -10 -10 -9 ------- Run | Yrd Mat Min Mat Slots Evolved 2 | . . . 2 Power . | . . . . Propulsion 1 | . . . 1 Utility 1 | . . . 1 Weapon . | . . . . Parts Attached 32 | 11 3 9 9 Power 4 | 1 . 2 1 Engine 4 | 1 . 2 1 Core . | . . . . Reactor . | . . . . Propulsion 11 | 5 . 3 3 Treads 1 | . . . 1 Leg 5 | 3 . . 2 Wheel 2 | 2 . . . Hover . | . . . . Flight 3 | . . 3 . Utility 9 | 3 2 2 2 Device 5 | 2 . 1 2 Storage 4 | 1 2 1 . Processor . | . . . . Hackware . | . . . . Protection . | . . . . Artifact . | . . . . Weapon 8 | 2 1 2 3 Energy Gun 2 | 1 . . 1 Energy Cannon . | . . . . Ballistic Gun 5 | 1 . 2 2 Ballistic Cannon . | . . . . Launcher 1 | . 1 . . Special Weapon . | . . . . Impact Weapon . | . . . . Slashing Weapon . | . . . . Piercing Weapon . | . . . . Special Melee Weapon . | . . . . Unidentified Prototypes 1 | . . 1 . Parts Lost 17 | . 3 4 10 Power 4 | . 1 1 2 Propulsion 3 | . . 1 2 Utility 5 | . 1 . 4 Weapon 5 | . 1 2 2 Highest Loss Streak 7 | . 2 2 7 To Critical Strikes 1 | . . . 1 Average Backups 2 | 2 4 2 2 Power . | . 1 . . Propulsion . | 1 2 . 1 Utility 1 | . 1 2 1 Weapon . | . . . . Tool/Special . | . . . . Unused Backups 3 | 1 . 2 . Power . | . . . . Propulsion 1 | . . 1 . Utility 1 | . . 1 . Weapon 1 | 1 . . . Tool/Special . | . . . . Average Slot Usage (%) 81 | . 89 80 78 Engine 7 | . 6 7 7 Treads 1 | . . . 2 Leg 11 | . 28 5 10 Flight 9 | . . 15 7 Device 7 | . 3 5 9 Storage 20 | . 23 22 18 Energy Gun 1 | . 3 . 1 Ballistic Gun 19 | . 14 20 20 Launcher 2 | . 9 1 . Peak Build Rating 16 | 9 9 15 16 Average Rating 8 | 4 6 10 9 On Entrance 7 | . 9 6 15 Avg Prop Armor Cover (%) 7 | . . 7 7 Naked Turns 7 | . . . 7 Heaviest Build 18 | 10 12 13 18 Greatest Support 20 | 20 20 20 20 Greatest Overweight (x) 2 | . . 2 1 Average Overweight (x) . | . . 1 . Largest Inventory Capacity 5 | 5 5 5 5 Average Capacity 5 | 5 5 5 5 Most Carried 5 | 5 5 5 5 Average Carried 2 | 2 4 2 3 Final Capacity 5 | 5 5 5 5 Final Carried 5 | 4 5 2 2 Class Distribution -------------------- 52% | Scavenger-Mutant 47% | Mutant Dominant Class ---------------- Mutant | -10/Materials Mutant | -10/Mines Scavenger-Mutant | -9/Materials Resources | -11 -10 -10 -9 ----------- Run | Yrd Mat Min Mat Matter Collected 1194 | 391 3 528 272 Remotely . | . . . . Salvage Created 841 | 113 54 170 504 Parts 63 | 14 10 14 25 Haulers Intercepted . | . . . . Recyclers Shooed . | . . . . Parts Field Recycled . | . . . . Retrieved Matter . | . . . . Parts Self-Destructed . | . . . . Prevented . | . . . . Parts Restored . | . . . . Kills | -11 -10 -10 -9 ------- Run | Yrd Mat Min Mat Combat Hostiles Destroyed 24 | 1 5 8 10 Melee 1 | . . 1 . Guns 16 | 1 1 4 10 AOE 7 | . 4 3 . Classes Destroyed 6 | 3 1 . 2 Worker 1 | 1 . . . Tunneler 2 | 2 . . . Recycler 1 | . . . 1 Swarmer 11 | . 5 6 . Grunt 11 | 1 . 2 8 Sentry 2 | . . . 2 Best Kill Streak 3 | 3 3 3 3 Combat Bots Only 3 | 1 3 3 3 Max Kills in Single Turn 3 | 1 2 3 1 Gunslinging . | . . . . Exploded 3 | . 2 3 . Melee 1 | . . 1 . Uniques/NPCs Destroyed . | . . . . Combat | -11 -10 -10 -9 -------- Run | Yrd Mat Min Mat Hostile Shots Fired 195 | 2 23 61 109 Missed 49 | 1 7 17 24 Hits 146 | 1 16 44 85 Melee 5 | . . . 5 Projectile 141 | 1 16 44 80 Critical Strikes 3 | . . 1 2 Damage Taken 1862 | 35 241 465 1121 Core 594 | 12 23 151 408 Absorbed by Shields . | . . . . Regen/Repaired (Parts) 43 | . . . 43 Core Remaining (%) 60 | 95 . 25 . Volleys Fired 78 | 6 8 31 33 Largest 2 | 2 2 2 2 Hottest 88 | 60 60 50 88 Shots Fired 125 | 12 15 34 64 Gun 120 | 12 12 32 64 Cannon . | . . . . Launcher 5 | . 3 2 . Special . | . . . . Kinetic 102 | 6 8 32 56 Thermal 8 | . . . 8 Explosive 5 | . 3 2 . Electromagnetic 10 | 6 4 . . Robot Hit Streak 11 | 3 3 4 11 Robot Miss Streak 5 | 1 2 5 2 Penetration Max . | . . . . Secondary Targets 2 | . . . 2 Max Gunslinging Chain 1 | . . . 1 Shots Hit Robots 84 | 6 8 20 50 Core Hits 50 | 5 6 16 23 Critical Kills . | . . . . Critical Parts Destroyed 1 | . . . 1 Critical Strikes 1 | . . . 1 Destroy 1 | . . . 1 Melee Attacks . | . . . . Impact . | . . . . Slashing . | . . . . Piercing . | . . . . Sneak Attacks . | . . . . Combat Hostiles . | . . . . Follow-up Attacks . | . . . . Damage Inflicted 1553 | 116 379 366 692 Guns 1055 | 75 45 243 692 Cannons . | . . . . Explosions 477 | 41 334 102 . Melee . | . . . . Ramming 21 | . . 21 . Kinetic 898 | 22 25 243 608 Thermal 162 | 41 37 . 84 Explosive 318 | . 216 102 . Electromagnetic 154 | 53 101 . . Impact . | . . . . Slashing . | . . . . Piercing . | . . . . Highest Corruption 11 | . . . 11 Average Corruption 10 | . . . 10 Corruption Purged . | . . . . Corruption Blocked . | . . . . Overload Shots . | . . . . Overflow Damage 52 | . 47 5 . Projectiles . | . . . . Explosions 52 | . 47 5 . Melee . | . . . . Knockbacks 1 | . . 1 . Impact 1 | . . 1 . Kinetic . | . . . . Secondary . | . . . . Self-Inflicted Damage 185 | 23 114 48 . Shots 6 | 1 4 1 . Rammed 9 | . . 9 . Targets Rammed 10 | . . 9 1 Kicked 1 | . . . 1 Crushed . | . . . . Highest Temperature 309 | 12 24 5 309 Average Temperature 115 | 8 18 5 139 Received Heat Transfer 543 | 6 . 102 435 Siege Activations . | . . . . Martial Activations . | . . . . Shielding Activations . | . . . . Robots Disrupted . | . . . . Combat Hostiles . | . . . . Robots Corrupted . | . . . . Combat Hostiles . | . . . . Parts Fried . | . . . . Impact Corruptions . | . . . . Robots Melted . | . . . . Combat Hostiles . | . . . . Parts Melted . | . . . . Heat Transferred 285 | 50 50 . 185 Parts Sabotaged . | . . . . Parts Stolen . | . . . . Parts Stripped . | . . . . Power Chain Reactions 3 | 1 2 . . Alert | -11 -10 -10 -9 ------- Run | Yrd Mat Min Mat Maximum Alert Level . | . . . . Low Security (%) 100 | 100 100 100 100 Level 1 . | . . . . Level 2 . | . . . . Level 3 . | . . . . Level 4 . | . . . . Level 5 . | . . . . High Security . | . . . . Max Security . | . . . . Peak Influence 133 | 20 133 109 120 Initial 33 | . 6 33 5 Average 49 | 4 85 58 38 Influence Increases 830 | 35 205 276 314 Destroy 0b10 Robot/C 480 | 20 100 160 200 Destroy 0b10 Robot/NC 20 | 15 . . 5 Destroy Leader 100 | . 10 30 60 Successful Hack 15 | . 12 . 3 Disable Machine 45 | . 45 . . Destroy Structure 35 | . 23 11 1 Lose Combat Pursuer 135 | . 15 75 45 Influence Decreases 788 | 25 130 346 287 Entered New Map 66 | . 4 52 10 Time Decay 572 | 25 96 254 197 Lost Part 150 | . 30 40 80 Squads Dispatched 6 | . 1 . 5 Investigation 2 | . . . 2 Extermination . | . . . . Reinforcement 4 | . 1 . 3 Assault . | . . . . Garrison . | . . . . Intercept . | . . . . Searches Triggered . | . . . . Construction Impeded . | . . . . Haulers Reinforced . | . . . . Active Scanning Responses . | . . . . Cargo Convoy Interrupts . | . . . . Stealth | -11 -10 -10 -9 --------- Run | Yrd Mat Min Mat Distress Signals 3 | . 1 . 2 Communications Jammed . | . . . . Distress Signals . | . . . . Times Spotted 41 | 1 8 13 19 Peak Tracking Total 6 | 1 4 6 6 Tactical Retreats 4 | . 1 2 1 Traps | -11 -10 -10 -9 ------- Run | Yrd Mat Min Mat Traps Triggered 1 | . . . 1 Indirectly . | . . . . Trap Hack Attempts . | . . . . Triggered . | . . . . Disarmed . | . . . . Reprogrammed . | . . . . Reused . | . . . . Traps Extracted . | . . . . Installed . | . . . . Triggered . | . . . . Machines | -11 -10 -10 -9 ---------- Run | Yrd Mat Min Mat Machines Disabled 3 | . 3 . . Max in Single Turn 3 | . 3 . . Machines Repaired . | . . . . Machines Dismantled . | . . . . Machines Sabotaged . | . . . . Overloaded Fab Kills . | . . . . Hacking | -11 -10 -10 -9 --------- Run | Yrd Mat Min Mat Machines Accessed 5 | . 2 . 3 Terminals 3 | . 1 . 2 Fabricators . | . . . . Repair Stations 1 | . . . 1 Recycling Units 1 | . 1 . . Scanalyzers . | . . . . Garrison Access . | . . . . Total Hacks 11 | . 3 . 8 Successful 6 | . 1 . 5 Failed 5 | . 2 . 3 Catastrophic 1 | . . . 1 Database Lockouts . | . . . . Manual 4 | . 1 . 3 Terminals 6 | . 2 . 4 Fabricators . | . . . . Repair Stations 4 | . . . 4 Recycling Units 1 | . 1 . . Scanalyzers . | . . . . Garrison Access . | . . . . Terminal Hacks 3 | . 1 . 2 Record 3 | . 1 . 2 Fabricator Hacks . | . . . . Repair Station Hacks 3 | . . . 3 Scan Component 2 | . . . 2 Repair 1 | . . . 1 Recycling Unit Hacks . | . . . . Scanalyzer . | . . . . Garrison Access Hacks . | . . . . Unauthorized Hacks . | . . . . Terminals . | . . . . Fabricators . | . . . . Repair Stations . | . . . . Recycling Units . | . . . . Scanalyzers . | . . . . Garrison Access . | . . . . Data Cores Recovered . | . . . . Used . | . . . . Hacking Detections 5 | . 2 . 3 Full Trace Events 3 | . . . 3 Feedback Events . | . . . . Feedback Blocked . | . . . . Robot Schematics Acquired . | . . . . Robots Built . | . . . . Authchips . | . . . . Time . | . . . . Total Robot Build Rating . | . . . . Part Schematics Acquired . | . . . . Parts Built . | . . . . Authchips . | . . . . Time . | . . . . Total Part Build Rating . | . . . . Part Studies Acquired . | . . . . Parts Repaired 1 | . . . 1 Time 26 | . . . 26 Parts Recycled . | . . . . Recycled Matter . | . . . . Retrieved Matter . | . . . . Retrieved Components . | . . . . Parts Scanalyzed . | . . . . Part Schematics Acquired . | . . . . Parts Damaged . | . . . . Bothacking | -11 -10 -10 -9 ------------ Run | Yrd Mat Min Mat Used RIF Installer . | . . . . Robots Hacked . | . . . . Non-combat . | . . . . Combat . | . . . . Robot Hacks Applied . | . . . . Relay Couplers Released . | . . . . Fabnet Peak Effective % . | . . . . Robots Rewired . | . . . . Allies Hacked . | . . . . Hacks Repelled . | . . . . Allies | -11 -10 -10 -9 -------- Run | Yrd Mat Min Mat Total Allies . | . . . . Largest Group . | . . . . Highest-Rated Group . | . . . . Highest-Rated Ally . | . . . . Total Orders . | . . . . Ally Attacks . | . . . . Total Damage . | . . . . Kills . | . . . . Allies Corrupted . | . . . . Allies Melted . | . . . . Intel | -11 -10 -10 -9 ------- Run | Yrd Mat Min Mat Active Infowar (turns) 663 | 18 46 234 365 Sensors 297 | . . 234 63 Terrain 64 | 18 46 . . Structural 302 | . . . 302 ECM 150 | . . . 150 Robot Analysis Total . | . . . . Derelict Logs Recovered 1 | . . 1 . Drone Launches . | . . . . Drone Recoveries . | . . . . Exploration | -11 -10 -10 -9 ------------- Run | Yrd Mat Min Mat Turns Passed 1480 | 136 216 558 570 Spaces Moved 958 | 87 151 366 354 Core 101 | 16 . 85 . Treads 61 | . . . 61 Legs 428 | 66 151 55 156 Wheels 5 | 5 . . . Hover . | . . . . Flight 363 | . . 226 137 Fastest Speed 50 | 50 120 100 117 Average Speed 122 | 104 120 125 126 Slowest Speed 200 | 120 120 200 190 Overloaded Moves . | . . . . Propulsion Burnouts . | . . . . Robots Hopped . | . . . . Potential Cave-ins . | . . . . Cave-ins Triggered . | . . . . Exploration Rate (%) 36 | 8 31 81 27 Regions Visited 3 Branch Regions 1 Pre-discovered Areas 2 | . . 2 . Known Exits Taken . | . . . . Unknown Exits Taken 3 | 1 1 1 . Scrap Searched 1 | . . 1 . Spaces Dug . | . . . . Terrain Destroyed 35 | 2 22 11 . Melee . | . . . . Projectile . | . . . . AOE 35 | 2 22 11 . Terrain Rammed . | . . . . Walls Destroyed . | . . . . Machines Disabled . | . . . . Actions | -11 -10 -10 -9 --------- Run | Yrd Mat Min Mat Total 1142 | 121 170 435 416 Wait 16 | . 6 4 6 Move 955 | 86 150 365 354 Hop . | . . . . Pick Up 32 | 13 3 9 7 Fast Attach 2 | 1 . . 1 Attach 19 | 8 2 6 3 Detach 2 | 2 . . . Swap 12 | 2 1 3 6 Drop 16 | 3 . 8 5 Fire 78 | 6 8 31 33 Melee . | . . . . Ram 9 | . . 9 . Kick 1 | . . . 1 Crush . | . . . . Escape Stasis . | . . . . Rewire . | . . . . Trap . | . . . . Miscellaneous . | . . . . Route ------- -11/Scrapyard -10/Materials (discovered 2 exits: [*Min x2]) -10/Mines -9/Materials History --------- Turn | Location | Event 2 | -11/Scrapyard | Met Revision 17 88 | -11/Scrapyard | Discovered new exit (range 8) 137 | -11/Scrapyard | Entered Materials 138 | -10/Materials | Met a group of wandering Federalists 154 | -10/Materials | Discovered new exit (range 15) 275 | -10/Materials | Discovered new exit (range 14) 316 | -10/Materials | Build established: Mutant 353 | -10/Materials | Entered Mines 504 | -10/Mines | Found a damaged Exp. Sensor Array with a note attached 507 | -10/Mines | Found Prototype Device 611 | -10/Mines | Core integrity fell below 50% 670 | -10/Mines | Learned location of Storage (-9) 677 | -10/Mines | Identified Exp. Sensor Array 765 | -10/Mines | Learned location of Zion (-7) 899 | -10/Mines | Discovered new exit (range 7) 911 | -10/Mines | Entered Materials 911 | -9/Materials | Evolved 2 slots: Propulsion x1, Utility x1 1008 | -9/Materials | Build established: Scavenger-Mutant 1364 | -9/Materials | Repaired Aluminum Leg? 1474 | -9/Materials | Core integrity fell below 50% 1475 | -9/Materials | System corruption reached 10% 1478 | -9/Materials | Core integrity fell below 20% 1481 | -9/Materials | Destroyed by G-34 Mercenary with Small Laser Last Messages --------------- K-01 Serf collects debris. Lgt. Treads destroyed. R-06 Scavenger collects Flight Unit. Particle Gun destroyed. K-01 Serf collects debris. R-06 Scavenger collects Aluminum Leg. Critical hit (Smash). Imp. Ion Engine destroyed. ECM Suite destroyed. Med. Matter Pod destroyed. System corrupted by crushing effect (+1). System corrupted by crushing effect (+2). System corrupted by crushing effect (+5). Hvy. Assault Rifle destroyed. Structural Scanner destroyed. System corrupted by crushing effect (+1). System corrupted by crushing effect (+2). [Achievement: System Compromised] K-01 Serf collects debris. [Achievement: First Step to Greatness] Map ----- +----------------------------------------------------+ | | | | | | | | | | | | | ?????????????????????????????????????????? | | ?????????????????????????????????????????? | | ?????????????????????????????????????????? | | ?????????????????????????????????????????? | | ?????????????????????????????????????????? | | ?????????????????????????????????????????? | | ????????????????????????????? #########??? | | ????????????????????????????? #########??? | | ????????????????????????????? # ##??? | | ????????????????????????????? # # ??? | | ?????????????? ??????? # " # ??? | | ?????#############+##### # """ # ??? | | ????? ########## #######+### """ # ??? | | ????? # """ # ??? | | ?????? + "" # ??? | | ???????## """ """ # """ # ??? | | ???????## """"""""" # "" # ??? | | ??????? + Y """"" = # =""" ##### | | ??????? # =%%g g* %#=%*" ##### | | ??????? # @b k %[!=+ ![ = + | | ??????? ###########+###########=[[* ##### | | ??????? ####### ### ############## | | ?????????????## # ###### | | ?????????????## """ # """ + + | | ?????????????## """"" # """ ###### | | ?????????????## """"" + """ ###### | | ?????????????## """"" # " " ##??## | | ?????????????## """ # "R" !! ##??## | | ?????????????## # """ !! ##??## | | ?????????????##/###############/######??## | | ?????????????## ############# ####?? | | ?????###????### ###????????## ? ??????? | | ?????## ???? ## ############# ? ????? | | ?????## # ############ ??? ??? | | ?????## """ + " #####??? | | ???????? """ # ### #########???######??? | | ???????????? ## #### ###########?###?????? | | ???????????? ## #### ## #?????????? | | ??????????##### #### ## """ #?????????? | | ??????????#####+#### ## """ #?????????? | | ??????????## # #!!! """ #?????????? | | ??????????## # #!!! #?????????? | | ??????????## == # #!! """ #?????????? | | ??????????## == + # """ #?????????? | +----------------------------------------------------+ Best States ------------- Heat Dissipation 28 Energy Generation 12 Energy Capacity 265 Matter Stores 650 Matter Capacity 650 Sight Range 16 Robot Scan Range 20 Terrain Scan Range 16 Terrain Scan Density 10 ECM Strength 1 Evasion (%) 55 Recoil Reduction 1 Item Schematics ----------------- None Robot Schematics ------------------ None Fabricated ------------ Nothing Repaired ---------- Aluminum Leg | 52% | -9/Materials Studied --------- None Alien Tech Used ----------------- None Achievements -------------- Crack Shot First Step to Greatness Fist Fight For Emergencies Only Let's See Who's Tougher One Hack Too Far Organ Harvest Part-time Mechanic Risk Taker Storm Trooper System Compromised There's More Where That Came From Uninvited Guest Challenges ------------ None Game ------ Seed StormPlasmaWeb Manual? 0 Play Time 00:46:56 Cumulative 0.7 hours Start 2026.01.18 @ 17:16:14 End 2026.01.18 @ 18:06:07 Sessions 1 Manual Loads 0 Difficulty Rogue Special Mode None Game No. 1 Rogue 1 Adventurer 0 Explorer 0 Win Type - Total 0 Types 0/0/0/0/0/0/0/0/0/0 Lore% 0 Gallery% 1 Achievement% 2 Wizard Run 0 Options --------- Layout 1 ASCII 0 Keyboard 0 Movement Mouse Keybinds 0 Fullscreen 1 Font 24/Smallcaps Map View 50x35 Zoom Use 11% Tactical HUD 0 Map Filters NONE Filters NONE Steam 1 RUN: ea6b7c82-2ee3-42c2-8641-53c2d02a60ef